fUST/lending_fUST_20250718
["ID","MTS","AMOUNT","RATE_DAILY","PERIOD"]
[372927172,1752810652601,-615.5,0.00017798,3]
[372927173,1752810652610,-307.74,0.00017798,3]
[372927174,1752810652620,-460.0,0.00017808,2]
[372927175,1752810652630,-460.0,0.00017808,2]
[372927176,1752810652640,-460.0,0.00017808,2]
[372927177,1752810652649,-460.0,0.00017808,2]
[372927178,1752810652659,-460.0,0.00017808,2]
[372927179,1752810652668,-460.0,0.00017808,2]
[372927180,1752810652678,-460.0,0.00017808,2]
[372927181,1752810652687,-460.0,0.00017808,2]
[372927182,1752810652697,-460.0,0.00017808,2]
[372927183,1752810652710,-460.0,0.00017808,2]
[372927184,1752810652719,-460.0,0.00017808,2]
[372927185,1752810652730,-460.0,0.00017808,2]
[372927186,1752810652739,-460.0,0.00017808,2]
[372927187,1752810652749,-460.0,0.00017808,2]
[372927188,1752810652760,-460.0,0.00017808,2]
[372927189,1752810652769,-460.0,0.00017808,2]
[372927190,1752810652780,-460.0,0.00017808,2]
[372927191,1752810652790,-460.0,0.00017808,2]
[372927192,1752810652800,-460.0,0.00017808,2]
[372927193,1752810652810,-595.26236556,0.00017808,2]
[372927194,1752810652819,-460.0,0.00017808,2]
[372927195,1752810652829,-460.0,0.00017808,2]
[372927196,1752810652839,-460.0,0.00017808,2]
[372927197,1752810652849,-460.0,0.00017808,2]
[372927198,1752810652858,-460.0,0.00017808,2]
[372927199,1752810652870,-460.0,0.00017808,2]
[372927200,1752810652880,-475.19,0.00017808,2]
[372927201,1752810652890,-460.0,0.00017808,2]
[372927202,1752810652899,-460.0,0.00017808,2]
[372927203,1752810652909,-460.0,0.00017808,2]
[372927204,1752810652918,-460.0,0.00017808,2]
[372927205,1752810652928,-460.0,0.00017808,2]
[372927206,1752810652937,-460.0,0.00017808,2]
[372927207,1752810652947,-460.0,0.00017808,2]
[372927208,1752810652957,-460.0,0.00017808,2]
[372927209,1752810652967,-460.0,0.00017808,2]
[372927210,1752810652976,-460.0,0.00017808,2]
[372927211,1752810652986,-2461.73,0.00017808,2]
[372927212,1752810652995,-460.0,0.00017808,2]
[372927213,1752810653005,-450.57992044,0.00017808,2]
[372927214,1752810653014,-460.0,0.00017808,2]
[372927215,1752810653024,-460.0,0.00017808,2]
[372927216,1752810653033,-460.0,0.00017808,2]
[372927217,1752810653043,-460.0,0.00017808,2]
[372927218,1752810653053,-460.0,0.00017808,2]
[372927219,1752810653063,-460.0,0.00017808,2]
[372927220,1752810653072,-1030.36,0.00017808,2]
[372927221,1752810653082,-460.0,0.00017808,2]
[372927222,1752810653091,-1488.03,0.00017808,2]
[372927223,1752810653100,-460.0,0.00017808,2]
[372927224,1752810653110,-460.0,0.00017808,2]
[372927225,1752810653120,-600.91546002,0.00017808,2]
[372927226,1752810653130,-460.0,0.00017808,2]
[372927227,1752810653139,-460.0,0.00017808,2]
[372927228,1752810653148,-508.69,0.00017808,2]
[372927229,1752810653158,-460.0,0.00017808,2]
[372927230,1752810653167,-1505.56,0.00017808,2]
[372927231,1752810653177,-460.0,0.00017808,2]
[372927232,1752810653186,-460.0,0.00017808,2]
[372927233,1752810653196,-570.89,0.00017808,2]
[372927234,1752810653205,-467.60808665,0.00017808,2]
[372927235,1752810653215,-2830.02,0.00017808,2]
[372927236,1752810653224,-267.75515917,0.00017808,2]
[372927237,1752810653234,-460.0,0.00017808,2]
[372927238,1752810653243,-2404.93,0.00017808,2]
[372927239,1752810653253,-460.0,0.00017808,2]
[372927240,1752810653262,-460.0,0.00017808,2]
[372927241,1752810653272,-460.0,0.00017808,2]
[372927242,1752810653281,-460.0,0.00017808,2]
[372927243,1752810653291,-530.1115719,0.00017808,2]
[372927244,1752810653300,-618.66,0.00017808,2]
[372927245,1752810653310,-460.0,0.00017808,2]
[372927246,1752810653319,-460.0,0.00017808,2]
[372927247,1752810653329,-1032.38,0.00017808,2]
[372927248,1752810653339,-460.0,0.00017808,2]
[372927249,1752810653348,-574.83,0.00017808,2]
[372927250,1752810653357,-612.56,0.00017808,2]
[372927251,1752810653368,-481.63,0.00017808,2]
[372927252,1752810653378,-288.04854768,0.00017808,2]
[372927253,1752810653387,-460.0,0.00017808,2]
[372927254,1752810653396,-515.21442378,0.00017808,2]
[372927255,1752810653405,-460.0,0.00017808,2]
[372927256,1752810653415,-509.49,0.00017808,2]
[372927257,1752810653424,-460.0,0.00017808,2]
[372927258,1752810653433,-460.0,0.00017808,2]
[372927259,1752810653442,-460.0,0.00017808,2]
[372927260,1752810653452,-532.71,0.00017808,2]
[372927261,1752810653460,-463.14,0.00017808,2]
[372927262,1752810653470,-460.0,0.00017808,2]
[372927263,1752810653479,-1528.93,0.00017808,2]
[372927264,1752810653488,-460.0,0.00017808,2]
[372927265,1752810653498,-3075.97,0.00017808,2]
[372927266,1752810653506,-460.0,0.00017808,2]
[372927267,1752810653516,-460.0,0.00017808,2]
[372927268,1752810653525,-460.0,0.00017808,2]
[372927269,1752810653535,-1044.95,0.00017808,2]
[372927270,1752810653544,-460.0,0.00017808,2]
[372927271,1752810653553,-460.0,0.00017808,2]
[372927272,1752810653563,-460.0,0.00017808,2]
[372927273,1752810653572,-460.0,0.00017808,2]
[372927274,1752810653581,-460.0,0.00017808,2]
[372927275,1752810653590,-460.0,0.00017808,2]
[372927276,1752810653599,-460.0,0.00017808,2]
[372927277,1752810653609,-460.0,0.00017808,2]
[372927278,1752810653620,-551.26,0.00017808,2]
[372927279,1752810653630,-1073.17,0.00017808,2]
[372927280,1752810653638,-928.89,0.00017808,2]
[372927281,1752810653648,-460.0,0.00017808,2]
[372927282,1752810653657,-460.0,0.00017808,2]
[372927283,1752810653667,-841.3,0.00017808,2]
[372927284,1752810653676,-1044.57,0.00017808,2]
[372927285,1752810653686,-460.0,0.00017808,2]
[372927286,1752810653695,-460.0,0.00017808,2]
[372927287,1752810653706,-460.0,0.00017808,2]
[372927288,1752810653719,-470.17,0.00017808,2]
[372927289,1752810653728,-460.0,0.00017808,2]
[372927290,1752810653737,-460.0,0.00017808,2]
[372927291,1752810653746,-460.0,0.00017808,2]
[372927292,1752810653756,-508.05684862,0.00017808,2]
[372927293,1752810653767,-460.0,0.00017808,2]
[372927294,1752810653776,-460.0,0.00017808,2]
[372927295,1752810653786,-460.0,0.00017808,2]
[372927296,1752810653795,-1075.83788263,0.00017831,2]
[372927297,1752810653880,-501.46377135,0.00017864,2]
[372927298,1752810653890,-501.54652161,0.00017864,2]
[372927299,1752810653900,-500.0,0.00017864,2]
[372927300,1752810653910,-500.85686421,0.00017864,2]
[372927301,1752810653919,-500.0,0.00017864,2]
[372927302,1752810653929,-503.93358597,0.00017864,2]
[372927303,1752810653939,-501.09296893,0.00017864,2]
[372927304,1752810653948,-644.0334221,0.00017864,2]
[372927305,1752810653958,-501.33414174,0.00017864,2]
[372927306,1752810653967,-500.0,0.00017864,2]
[372927307,1752810653977,-500.0,0.00017865,2]
[372927308,1752810653986,-500.0,0.00017865,2]
[372927309,1752810653995,-500.0,0.00017865,2]
[372927310,1752810654005,-1500.0,0.00017868,2]
[372927311,1752810654014,-1000.0,0.00017868,2]
[372927312,1752810654025,-500.0,0.00017868,2]
[372927313,1752810654034,-1000.0,0.00017868,2]
[372927314,1752810654044,-500.96256715,0.00017878,2]
[372927315,1752810654053,-500.44364371,0.00017878,2]
[372927316,1752810654063,-420.0,0.00017961,2]
[372927317,1752810654073,-460.0,0.00018082,2]
[372927318,1752810654082,-460.0,0.00018082,2]
[372927319,1752810654092,-460.0,0.00018082,2]
[372927320,1752810654101,-460.0,0.00018082,2]
[372927321,1752810654111,-460.0,0.00018082,2]
[372927322,1752810654120,-460.0,0.00018082,2]
[372927323,1752810654129,-460.0,0.00018082,2]
[372927324,1752810654138,-460.0,0.00018082,2]
[372927325,1752810654148,-460.0,0.00018082,2]
[372927326,1752810654157,-460.0,0.00018082,2]
[372927327,1752810654166,-460.0,0.00018082,2]
[372927328,1752810654175,-460.0,0.00018082,2]
[372927329,1752810654185,-460.0,0.00018082,2]
[372927330,1752810654194,-460.0,0.00018082,2]
[372927331,1752810654203,-475.66084655,0.00018082,2]
[372927332,1752810654212,-460.0,0.00018082,2]
[372927333,1752810654221,-460.0,0.00018082,2]
[372927334,1752810654231,-460.0,0.00018082,2]
[372927335,1752810654240,-460.0,0.00018082,2]
[372927336,1752810654249,-460.0,0.00018082,2]
[372927337,1752810654259,-222.38499272,0.00018082,2]
[372927338,1752810654269,-460.0,0.00018082,2]
[372927339,1752810654278,-460.0,0.00018082,2]
[372927340,1752810654288,-475.19,0.00018082,2]
[372927341,1752810654297,-460.0,0.00018082,2]
[372927342,1752810654307,-460.0,0.00018082,2]
[372927343,1752810654316,-460.0,0.00018082,2]
[372927344,1752810654326,-460.0,0.00018082,2]
[372927345,1752810654335,-460.0,0.00018082,2]
[372927346,1752810654345,-460.0,0.00018082,2]
[372927347,1752810654355,-460.0,0.00018082,2]
[372927348,1752810654366,-203.8096211,0.00018082,2]
[372927349,1752810654376,-460.0,0.00018082,2]
[372927350,1752810654385,-2461.73,0.00018082,2]
[372927351,1752810654394,-460.0,0.00018082,2]
[372927352,1752810654404,-460.0,0.00018082,2]
[372927353,1752810654413,-477.94787217,0.00018082,2]
[372927354,1752810654423,-460.0,0.00018082,2]
[372927355,1752810654432,-1030.36,0.00018082,2]
[372927356,1752810654442,-460.0,0.00018082,2]
[372927357,1752810654451,-1488.03,0.00018082,2]
[372927358,1752810654461,-460.0,0.00018082,2]
[372927359,1752810654471,-460.0,0.00018082,2]
[372927360,1752810654481,-460.0,0.00018082,2]
[372927361,1752810654490,-424.35950472,0.00018082,2]
[372927362,1752810654500,-460.0,0.00018082,2]
[372927363,1752810654510,-1505.56,0.00018082,2]
[372927364,1752810654519,-460.0,0.00018082,2]
[372927365,1752810654530,-508.69,0.00018082,2]
[372927366,1752810654541,-460.0,0.00018082,2]
[372927367,1752810654552,-570.89,0.00018082,2]
[372927368,1752810654563,-2830.02,0.00018082,2]
[372927369,1752810654574,-460.0,0.00018082,2]
[372927370,1752810654584,-2404.93,0.00018082,2]
[372927371,1752810654593,-460.0,0.00018082,2]
[372927372,1752810654603,-460.0,0.00018082,2]
[372927373,1752810654613,-460.0,0.00018082,2]
[372927374,1752810654623,-460.0,0.00018082,2]
[372927375,1752810654633,-618.66,0.00018082,2]
[372927376,1752810654643,-460.0,0.00018082,2]
[372927377,1752810654652,-460.0,0.00018082,2]
[372927378,1752810654662,-1032.38,0.00018082,2]
[372927379,1752810654671,-460.0,0.00018082,2]
[372927380,1752810654681,-574.83,0.00018082,2]
[372927381,1752810654691,-612.56,0.00018082,2]
[372927382,1752810654700,-481.63,0.00018082,2]
[372927383,1752810654713,-460.0,0.00018082,2]
[372927384,1752810654723,-460.0,0.00018082,2]
[372927385,1752810654732,-509.49,0.00018082,2]
[372927386,1752810654742,-460.0,0.00018082,2]
[372927387,1752810654752,-451.47142411,0.00018082,2]
[372927388,1752810654762,-460.0,0.00018082,2]
[372927389,1752810654772,-532.71,0.00018082,2]
[372927390,1752810654782,-463.14,0.00018082,2]
[372927391,1752810654792,-460.0,0.00018082,2]
[372927392,1752810654802,-1528.93,0.00018082,2]
[372927393,1752810654811,-460.0,0.00018082,2]
[372927394,1752810654820,-3075.97,0.00018082,2]
[372927395,1752810654829,-460.0,0.00018082,2]
[372927396,1752810654839,-460.0,0.00018082,2]
[372927397,1752810654848,-460.0,0.00018082,2]
[372927398,1752810654857,-1044.95,0.00018082,2]
[372927399,1752810654867,-543.39590179,0.00018082,2]
[372927400,1752810654877,-460.0,0.00018082,2]
[372927401,1752810654886,-460.0,0.00018082,2]
[372927402,1752810654896,-460.0,0.00018082,2]
[372927403,1752810654906,-460.0,0.00018082,2]
[372927404,1752810654915,-460.0,0.00018082,2]
[372927405,1752810654925,-460.0,0.00018082,2]
[372927406,1752810654934,-460.0,0.00018082,2]
[372927407,1752810654944,-551.26,0.00018082,2]
[372927408,1752810654953,-1073.17,0.00018082,2]
[372927409,1752810654963,-928.89,0.00018082,2]
[372927410,1752810654973,-460.0,0.00018082,2]
[372927411,1752810654983,-460.0,0.00018082,2]
[372927412,1752810654992,-841.3,0.00018082,2]
[372927413,1752810655002,-1044.57,0.00018082,2]
[372927414,1752810655011,-460.0,0.00018082,2]
[372927415,1752810655021,-460.0,0.00018082,2]
[372927416,1752810655030,-460.0,0.00018082,2]
[372927417,1752810655040,-470.17,0.00018082,2]
[372927418,1752810655049,-460.0,0.00018082,2]
[372927419,1752810655059,-460.0,0.00018082,2]
[372927420,1752810655068,-460.0,0.00018082,2]
[372927421,1752810655078,-202.86835939,0.00018082,2]
[372927422,1752810655087,-475.62086787,0.00018121,2]
[372927423,1752810655096,-1075.83788263,0.00018141,2]
[372927424,1752810655106,-500.0,0.00018211,2]
[372927425,1752810655115,-501.26367768,0.00018211,2]
[372927426,1752810655125,-500.0,0.00018211,2]
[372927427,1752810655135,-500.0,0.00018211,2]
[372927428,1752810655144,-500.0,0.00018211,2]
[372927429,1752810655153,-500.0,0.00018211,2]
[372927430,1752810655163,-1074.65253016,0.00018256,2]
[372927431,1752810655180,-460.0,0.00018356,2]
[372927432,1752810655189,-460.0,0.00018356,2]
[372927433,1752810655199,-605.4,0.00018356,2]
[372927434,1752810655208,-460.0,0.00018356,2]
[372927435,1752810655218,-460.0,0.00018356,2]
[372927436,1752810655227,-508.8848807,0.00018356,2]
[372927437,1752810655244,-460.0,0.00018356,2]
[372927438,1752810655325,-460.0,0.00018356,2]
[372927439,1752810655335,-460.0,0.00018356,2]
[372927440,1752810655345,-460.0,0.00018356,2]
[372927441,1752810655354,-460.0,0.00018356,2]
[372927442,1752810655364,-460.0,0.00018356,2]
[372927443,1752810655374,-460.0,0.00018356,2]
[372927444,1752810655384,-460.0,0.00018356,2]
[372927445,1752810655394,-460.0,0.00018356,2]
[372927446,1752810655403,-460.0,0.00018356,2]
[372927447,1752810655413,-460.0,0.00018356,2]
[372927448,1752810655423,-460.0,0.00018356,2]
[372927449,1752810655432,-460.0,0.00018356,2]
[372927450,1752810655442,-460.0,0.00018356,2]
[372927451,1752810655451,-460.0,0.00018356,2]
[372927452,1752810655461,-460.0,0.00018356,2]
[372927453,1752810655471,-475.19,0.00018356,2]
[372927454,1752810655480,-460.0,0.00018356,2]
[372927455,1752810655489,-460.0,0.00018356,2]
[372927456,1752810655499,-460.0,0.00018356,2]
[372927457,1752810655508,-460.0,0.00018356,2]
[372927458,1752810655518,-460.0,0.00018356,2]
[372927459,1752810655527,-460.0,0.00018356,2]
[372927460,1752810655537,-460.0,0.00018356,2]
[372927461,1752810655546,-2461.73,0.00018356,2]
[372927462,1752810655555,-460.0,0.00018356,2]
[372927463,1752810655565,-460.0,0.00018356,2]
[372927464,1752810655575,-460.0,0.00018356,2]
[372927465,1752810655584,-1030.36,0.00018356,2]
[372927466,1752810655594,-460.0,0.00018356,2]
[372927467,1752810655603,-1488.03,0.00018356,2]
[372927468,1752810655613,-460.0,0.00018356,2]
[372927469,1752810655623,-460.0,0.00018356,2]
[372927470,1752810655632,-460.0,0.00018356,2]
[372927471,1752810655642,-460.0,0.00018356,2]
[372927472,1752810655651,-1505.56,0.00018356,2]
[372927473,1752810655661,-460.0,0.00018356,2]
[372927474,1752810655670,-508.69,0.00018356,2]
[372927475,1752810655679,-410.0,0.00018356,2]
[372927476,1752810655690,-570.89,0.00018356,2]
[372927477,1752810655699,-2830.02,0.00018356,2]
[372927478,1752810655713,-460.0,0.00018356,2]
[372927479,1752810655723,-2404.93,0.00018356,2]
[372927480,1752810655733,-460.0,0.00018356,2]
[372927481,1752810655742,-460.0,0.00018356,2]
[372927482,1752810655751,-460.0,0.00018356,2]
[372927483,1752810655761,-460.0,0.00018356,2]
[372927484,1752810655770,-618.66,0.00018356,2]
[372927485,1752810655780,-460.0,0.00018356,2]
[372927486,1752810655790,-460.0,0.00018356,2]
[372927487,1752810655800,-1032.38,0.00018356,2]
[372927488,1752810655810,-335.9346615,0.00018356,2]
[372927489,1752810655819,-574.83,0.00018356,2]
[372927490,1752810655829,-612.56,0.00018356,2]
[372927491,1752810655839,-481.63,0.00018356,2]
[372927492,1752810655849,-460.0,0.00018356,2]
[372927493,1752810655859,-460.0,0.00018356,2]
[372927494,1752810655870,-509.49,0.00018356,2]
[372927495,1752810655879,-360.59,0.00018356,2]
[372927496,1752810655889,-460.0,0.00018356,2]
[372927497,1752810655899,-532.71,0.00018356,2]
[372927498,1752810655908,-463.14,0.00018356,2]
[372927499,1752810655918,-460.0,0.00018356,2]
[372927500,1752810655927,-1528.93,0.00018356,2]
[372927501,1752810655938,-460.0,0.00018356,2]
[372927502,1752810655947,-3075.97,0.00018356,2]
[372927503,1752810655957,-460.0,0.00018356,2]
[372927504,1752810655967,-460.0,0.00018356,2]
[372927505,1752810655976,-460.0,0.00018356,2]
[372927506,1752810655986,-1044.95,0.00018356,2]
[372927507,1752810655995,-460.0,0.00018356,2]
[372927508,1752810656005,-460.0,0.00018356,2]
[372927509,1752810656015,-460.0,0.00018356,2]
[372927510,1752810656025,-460.0,0.00018356,2]
[372927511,1752810656035,-460.0,0.00018356,2]
[372927512,1752810656045,-460.0,0.00018356,2]
[372927513,1752810656054,-460.0,0.00018356,2]
[372927514,1752810656063,-551.26,0.00018356,2]
[372927515,1752810656073,-1073.17,0.00018356,2]
[372927516,1752810656083,-928.89,0.00018356,2]
[372927517,1752810656092,-460.0,0.00018356,2]
[372927518,1752810656102,-460.0,0.00018356,2]
[372927519,1752810656112,-841.3,0.00018356,2]
[372927520,1752810656123,-1044.57,0.00018356,2]
[372927521,1752810656133,-460.0,0.00018356,2]
[372927522,1752810656143,-460.0,0.00018356,2]
[372927523,1752810656152,-460.0,0.00018356,2]
[372927524,1752810656163,-470.17,0.00018356,2]
[372927525,1752810656173,-460.0,0.00018356,2]
[372927526,1752810656183,-369.09403443,0.00018356,2]
[372927527,1752810656192,-1002.71379163,0.00018412,2]
[372927528,1752810656202,-1000.0,0.00018412,2]
[372927529,1752810656212,-500.0,0.00018413,2]
[372927530,1752810656222,-500.0,0.00018413,2]
[372927531,1752810656231,-500.0,0.00018413,2]
[372927532,1752810656241,-1075.83788263,0.00018452,2]
[372927533,1752810656250,-460.0,0.0001863,2]
[372927534,1752810656260,-460.0,0.0001863,2]
[372927535,1752810656269,-460.0,0.0001863,2]
[372927536,1752810656279,-460.0,0.0001863,2]
[372927537,1752810656288,-460.0,0.0001863,2]
[372927538,1752810656298,-460.0,0.0001863,2]
[372927539,1752810656307,-460.0,0.0001863,2]
[372927540,1752810656317,-460.0,0.0001863,2]
[372927541,1752810656326,-468.91586432,0.0001863,2]
[372927542,1752810656336,-460.0,0.0001863,2]
[372927543,1752810656346,-460.0,0.0001863,2]
[372927544,1752810656355,-460.0,0.0001863,2]
[372927545,1752810656364,-460.0,0.0001863,2]
[372927546,1752810656375,-460.0,0.0001863,2]
[372927547,1752810656384,-460.0,0.0001863,2]
[372927548,1752810656393,-460.0,0.0001863,2]
[372927549,1752810656403,-460.0,0.0001863,2]
[372927550,1752810656412,-460.0,0.0001863,2]
[372927551,1752810656421,-460.0,0.0001863,2]
[372927552,1752810656431,-475.19,0.0001863,2]
[372927553,1752810656440,-460.0,0.0001863,2]
[372927554,1752810656449,-577.17389151,0.0001863,2]
[372927555,1752810656459,-460.0,0.0001863,2]
[372927556,1752810656468,-460.0,0.0001863,2]
[372927557,1752810656478,-460.0,0.0001863,2]
[372927558,1752810656487,-460.0,0.0001863,2]
[372927559,1752810656497,-460.0,0.0001863,2]
[372927560,1752810656507,-2461.73,0.0001863,2]
[372927561,1752810656516,-460.0,0.0001863,2]
[372927562,1752810656525,-460.0,0.0001863,2]
[372927563,1752810656534,-460.0,0.0001863,2]
[372927564,1752810656544,-1030.36,0.0001863,2]
[372927565,1752810656553,-460.0,0.0001863,2]
[372927566,1752810656562,-1488.03,0.0001863,2]
[372927567,1752810656572,-460.0,0.0001863,2]
[372927568,1752810656650,-460.0,0.0001863,2]
[372927569,1752810656660,-460.0,0.0001863,2]
[372927570,1752810656673,-460.0,0.0001863,2]
[372927571,1752810656684,-1505.56,0.0001863,2]
[372927572,1752810656693,-460.0,0.0001863,2]
[372927573,1752810656704,-508.69,0.0001863,2]
[372927574,1752810656715,-570.89,0.0001863,2]
[372927575,1752810656726,-2830.02,0.0001863,2]
[372927576,1752810656736,-460.0,0.0001863,2]
[372927577,1752810656746,-2404.93,0.0001863,2]
[372927578,1752810656756,-460.0,0.0001863,2]
[372927579,1752810656767,-460.0,0.0001863,2]
[372927580,1752810656777,-460.0,0.0001863,2]
[372927581,1752810656787,-460.0,0.0001863,2]
[372927582,1752810656798,-618.66,0.0001863,2]
[372927583,1752810656807,-460.0,0.0001863,2]
[372927584,1752810656816,-460.0,0.0001863,2]
[372927585,1752810656826,-1032.38,0.0001863,2]
[372927586,1752810656835,-574.83,0.0001863,2]
[372927587,1752810656844,-612.56,0.0001863,2]
[372927588,1752810656854,-481.63,0.0001863,2]
[372927589,1752810656864,-460.0,0.0001863,2]
[372927590,1752810656876,-460.0,0.0001863,2]
[372927591,1752810656886,-509.49,0.0001863,2]
[372927592,1752810656895,-460.0,0.0001863,2]
[372927593,1752810656905,-532.71,0.0001863,2]
[372927594,1752810656915,-463.14,0.0001863,2]
[372927595,1752810656924,-460.0,0.0001863,2]
[372927596,1752810656934,-1528.93,0.0001863,2]
[372927597,1752810656943,-460.0,0.0001863,2]
[372927598,1752810656953,-3075.97,0.0001863,2]
[372927599,1752810656963,-460.0,0.0001863,2]
[372927600,1752810656972,-460.0,0.0001863,2]
[372927601,1752810656983,-460.0,0.0001863,2]
[372927602,1752810656993,-1044.95,0.0001863,2]
[372927603,1752810657003,-460.0,0.0001863,2]
[372927604,1752810657018,-460.0,0.0001863,2]
[372927605,1752810657027,-460.0,0.0001863,2]
[372927606,1752810657037,-460.0,0.0001863,2]
[372927607,1752810657047,-460.0,0.0001863,2]
[372927608,1752810657057,-460.0,0.0001863,2]
[372927609,1752810657066,-460.0,0.0001863,2]
[372927610,1752810657076,-551.26,0.0001863,2]
[372927611,1752810657086,-1073.17,0.0001863,2]
[372927612,1752810657100,-928.89,0.0001863,2]
[372927613,1752810657112,-460.0,0.0001863,2]
[372927614,1752810657123,-841.3,0.0001863,2]
[372927615,1752810657133,-460.0,0.0001863,2]
[372927616,1752810657142,-1044.57,0.0001863,2]
[372927617,1752810657152,-470.17,0.0001863,2]
[372927618,1752810657162,-445.04538314,0.0001863,2]
[372927619,1752810657172,-40530.44935832,0.00018715,2]
[372927620,1752810657182,-501.05616911,0.00018758,2]
[372927621,1752810657192,-503.42127867,0.00018758,2]
[372927622,1752810657201,-500.0,0.00018758,2]
[372927623,1752810657211,-500.13680173,0.00018758,2]
[372927624,1752810657220,-1075.83788263,0.00018762,2]
[372927625,1752810657229,-460.0,0.00018904,2]
[372927626,1752810657238,-460.0,0.00018904,2]
[372927627,1752810657247,-460.0,0.00018904,2]
[372927628,1752810657257,-460.0,0.00018904,2]
[372927629,1752810657266,-460.0,0.00018904,2]
[372927630,1752810657276,-460.0,0.00018904,2]
[372927631,1752810657286,-460.0,0.00018904,2]
[372927632,1752810657297,-460.0,0.00018904,2]
[372927633,1752810657307,-460.0,0.00018904,2]
[372927634,1752810657317,-460.0,0.00018904,2]
[372927635,1752810657328,-460.0,0.00018904,2]
[372927636,1752810657338,-460.0,0.00018904,2]
[372927637,1752810657347,-426.30755445,0.00018904,2]
[372927638,1752810657359,-518.4812801,0.00018904,2]
[372927639,1752810657371,-507.2672269,0.00018904,2]
[372927640,1752810657381,-460.0,0.00018904,2]
[372927641,1752810657391,-460.0,0.00018904,2]
[372927642,1752810657401,-475.19,0.00018904,2]
[372927643,1752810657411,-460.0,0.00018904,2]
[372927644,1752810657421,-460.0,0.00018904,2]
[372927645,1752810657432,-460.0,0.00018904,2]
[372927646,1752810657444,-460.0,0.00018904,2]
[372927647,1752810657455,-460.0,0.00018904,2]
[372927648,1752810657466,-460.0,0.00018904,2]
[372927649,1752810657476,-2461.73,0.00018904,2]
[372927650,1752810657486,-460.0,0.00018904,2]
[372927651,1752810657496,-460.0,0.00018904,2]
[372927652,1752810657506,-460.0,0.00018904,2]
[372927653,1752810657516,-1030.36,0.00018904,2]
[372927654,1752810657527,-1488.03,0.00018904,2]
[372927655,1752810657537,-460.0,0.00018904,2]
[372927656,1752810657547,-460.0,0.00018904,2]
[372927657,1752810657557,-460.0,0.00018904,2]
[372927658,1752810657566,-1505.56,0.00018904,2]
[372927659,1752810657576,-460.0,0.00018904,2]
[372927660,1752810657586,-508.69,0.00018904,2]
[372927661,1752810657595,-570.89,0.00018904,2]
[372927662,1752810657605,-2830.02,0.00018904,2]
[372927663,1752810657614,-460.0,0.00018904,2]
[372927664,1752810657626,-2404.93,0.00018904,2]
[372927665,1752810657635,-324.92702152,0.00018904,2]
[372927666,1752810657646,-460.0,0.00018904,2]
[372927667,1752810657656,-460.0,0.00018904,2]
[372927668,1752810657667,-460.0,0.00018904,2]
[372927669,1752810657676,-618.66,0.00018904,2]
[372927670,1752810657686,-460.0,0.00018904,2]
[372927671,1752810657695,-460.0,0.00018904,2]